[Event "1000GM BonaFIDE January 2024"]
[Site "Sunnyvale"]
[Date "2024.01.21"]
[Round "3.4"]
[White "Kulkarni, Advit Amod"]
[Black "Ni, Leo"]
[Result "1/2-1/2"]
[ECO "C07"]
[WhiteElo "1510"]
[BlackElo "1440"]
[Annotator "NA RC COMBH"]
[PlyCount "103"]
[EventDate "2024.01.20"]
[EventType "swiss"]
[EventCountry "USA"]
[SourceTitle "playchess.com"]
[Source "ChessBase"]
[SourceQuality "1"]
[TimeControl "5400+30"]

1. e4 {[%emt 0:00:02]} e6 {[%emt 0:00:11]} 2. d4 {[%emt 0:00:03]} d5 {[%emt 0:00:09]} 3. Nd2 {[%emt 0:00:07]} c5 {[%emt 0:00:27]} 4. Ngf3 {[%emt 0:00:06]} cxd4 {[%emt 0:00:39]} 5. Nxd4 {[%emt 0:00:10]} Nc6 {[%emt 0:00:29]} 6. Bb5 {[%emt 0:01:56]} Bd7 {[%emt 0:01:30]} 7. N4f3 {[%emt 0:00:54]} Nf6 {[%emt 0:04:17]} 8. exd5 {[%emt 0:00:55]} Nxd5 {[%emt 0:01:48]} 9. O-O {[%emt 0:00:30]} Be7 {[%emt 0:02:37]} 10. Ne4 {[%emt 0:02:49]} O-O {[%emt 0:02:22]} 11. c4 {[%emt 0:02:39]} Nf6 {[%emt 0:01:47]} 12. Nc3 {[%emt 0:03:23]} Qc7 {[%emt 0:04:19]} 13. Be3 {[%emt 0:04:17]} Rac8 {[%emt 0:03:21]} 14. Nd4 {[%emt 0:04:02]} a6 {[%emt 0:05:17]} 15. Nxc6 {[%emt 0:03:37]} Bxc6 {[%emt 0:00:09]} 16. Bxc6 {[%emt 0:00:19]} Qxc6 {[%emt 0:00:10]} 17. b3 {[%emt 0:00:11]} b5 {[%emt 0:02:28]} 18. Rc1 {[%emt 0:07:32]} bxc4 {[%emt 0:02:42]} 19. Ne2 {[%emt 0:06:26]} Qb5 {[%emt 0:03:42]} 20. Nd4 {[%emt 0:04:21]} Qd5 {[%emt 0:00:59]} 21. Qe2 {[%emt 0:03:48]} cxb3 {[%emt 0:02:33]} 22. Nxb3 {[%emt 0:00:18]} Qb5 {[%emt 0:03:45]} 23. Qxb5 {[%emt 0:00:35]} axb5 {[%emt 0:00:01]} 24. Bc5 {[%emt 0:02:25]} Bxc5 {[%emt 0:01:18]} 25. Rxc5 {[%emt 0:06:04]} Rxc5 {[%emt 0:01:02]} 26. Nxc5 {[%emt 0:00:08]} Ra8 {[%emt 0:01:31]} 27. f3 {[%emt 0:00:29]} Rxa2 {[%emt 0:00:59]} 28. Rb1 {[%emt 0:00:11]} Kf8 {[%emt 0:01:57]} 29. Rxb5 {[%emt 0:00:34]} Ra7 {[%emt 0:00:40]} 30. Ne4 {[%emt 0:01:50]} Nxe4 {[%emt 0:00:33]} 31. fxe4 {[%emt 0:00:11]} Ra4 {[%emt 0:00:40]} 32. e5 {[%emt 0:00:35]} Rf4 {[%emt 0:00:33]} 33. g3 {[%emt 0:01:04]} Rf5 {[%emt 0:00:10]} 34. Kg2 {[%emt 0:00:58]} f6 {[%emt 0:00:38]} 35. Rb8+ {[%emt 0:00:12]} Kf7 {[%emt 0:00:14]} 36. exf6 {[%emt 0:00:30]} Kxf6 {[%emt 0:00:38]} 37. g4 {[%emt 0:00:19]} Rc5 {[%emt 0:01:42]} 38. Kf3 {[%emt 0:00:40]} Ke5 {[%emt 0:00:50]} 39. Rb7 {[%emt 0:02:10]} Rc3+ {[%emt 0:00:59]} 40. Kf2 {[%emt 0:01:56]} Kf6 {[%emt 0:00:36]} 41. Rb6 {[%emt 0:00:57]} h5 {[%emt 0:01:27]} 42. g5+ {[%emt 0:02:12]} Kf5 {[%emt 0:00:21]} 43. Rb7 {[%emt 0:00:59]} g6 {[%emt 0:00:17]} 44. h4 {[%emt 0:03:08]} Rh3 {[%emt 0:01:33]} 45. Rb4 {[%emt 0:00:22]} e5 {[%emt 0:00:35]} 46. Kg2 {[%emt 0:00:05]} Rd3 {[%emt 0:48:35]} 47. Rb6 {[%emt 0:37:01]} Rh3 {[%emt 0:00:30]} 48. Rb4 Rxh4 {[%emt 0:00:30]} 49. Rxh4 {[%emt 0:01:00]} Kxg5 50. Kg3 {[%emt 0:00:30]} Kf5 {[%emt 0:01:00]} 51. Kf3 {[%emt 0:00:30]} Kg5 {[%emt 0:00:30]} 52. Kg3 {[%emt 0:00:30]} 1/2-1/2

[Event "1000GM BonaFIDE January 2024"]
[Site "Sunnyvale"]
[Date "2024.01.21"]
[Round "3.5"]
[White "Tia, Rudy Jr."]
[Black "Yang, Liwei"]
[Result "0-1"]
[ECO "A01"]
[WhiteElo "1614"]
[BlackElo "1483"]
[Annotator "NA RC COMBH"]
[PlyCount "90"]
[EventDate "2024.01.20"]
[EventType "swiss"]
[EventCountry "USA"]
[SourceTitle "playchess.com"]
[Source "ChessBase"]
[SourceQuality "1"]
[TimeControl "5400+30"]

1. b3 {[%emt 0:00:30]} d5 {[%emt 0:02:02]} 2. Bb2 {[%emt 0:00:00]} Nf6 {[%emt 0:00:27]} 3. e3 {[%emt 0:00:00]} c5 {[%emt 0:00:51]} 4. d3 {[%emt 0:00:00]} Nc6 {[%emt 0:00:10]} 5. Nd2 {[%emt 0:00:08]} e6 {[%emt 0:02:27]} 6. g3 {[%emt 0:00:48]} d4 {[%emt 0:04:44]} 7. e4 {[%emt 0:00:14]} e5 {[%emt 0:01:53]} 8. Bg2 {[%emt 0:00:43]} Bd6 {[%emt 0:02:40]} 9. Ne2 {[%emt 0:00:18]} Bd7 {[%emt 0:03:06]} 10. h3 {[%emt 0:02:01]} Qe7 {[%emt 0:07:04]} 11. Nc4 {[%emt 0:03:12]} b5 {[%emt 0:06:22]} 12. Nxd6+ {[%emt 0:00:38]} Qxd6 {[%emt 0:00:09]} 13. a4 {[%emt 0:01:20]} bxa4 {[%emt 0:02:35]} 14. Rxa4 {[%emt 0:00:07]} Nb4 {[%emt 0:00:26]} 15. Ra3 {[%emt 0:01:15]} a5 {[%emt 0:02:51]} 16. O-O {[%emt 0:00:14]} O-O {[%emt 0:00:14]} 17. f4 {[%emt 0:00:25]} Bb5 {[%emt 0:27:16]} 18. fxe5 {[%emt 0:03:16]} Qxe5 {[%emt 0:00:03]} 19. Rf5 {[%emt 0:00:10]} Qc7 {[%emt 0:06:59]} 20. Bxd4 {[%emt 0:11:17]} cxd4 {[%emt 0:00:28]} 21. Rxb5 {[%emt 0:00:06]} Nxc2 {[%emt 0:01:56]} 22. Ra4 {[%emt 0:01:57]} Ra6 {[%emt 0:06:03]} 23. Qd2 {[%emt 0:06:03]} Ne3 {[%emt 0:04:52]} 24. Rxd4 {[%emt 0:04:07]} Nxg2 {[%emt 0:00:14]} 25. Kxg2 {[%emt 0:00:07]} Rd8 {[%emt 0:00:29]} 26. Rxd8+ {[%emt 0:02:23]} Qxd8 {[%emt 0:00:02]} 27. Qf4 {[%emt 0:04:19]} Rb6 {[%emt 0:00:55]} 28. Nc3 {[%emt 0:03:53]} h6 {[%emt 0:01:10]} 29. Qe3 {[%emt 0:03:58]} Rc6 {[%emt 0:00:55]} 30. Nd5 {[%emt 0:03:03]} Rc2+ {[%emt 0:00:44]} 31. Kf3 {[%emt 0:00:19]} Nxd5 {[%emt 0:02:09]} 32. Rxd5 {[%emt 0:00:11]} Qf6+ {[%emt 0:00:05]} 33. Qf4 {[%emt 0:00:33]} Qb6 {[%emt 0:01:16]} 34. Kg4 {[%emt 0:03:35]} Rf2 {[%emt 0:05:00]} 35. Qd6 {[%emt 0:08:52]} Qe3 {[%emt 0:01:09]} 36. Qb8+ {[%emt 0:02:25]} Kh7 {[%emt 0:00:10]} 37. Qe5 {[%emt 0:00:07]} Qf3+ {[%emt 0:01:33]} 38. Kh4 {[%emt 0:00:32]} g5+ {[%emt 0:00:06]} 39. Qxg5 {[%emt 0:00:11]} hxg5+ {[%emt 0:00:05]} 40. Rxg5 {[%emt 0:00:08]} Qxd3 {[%emt 0:00:57]} 41. e5 {[%emt 0:00:43]} Qe4+ {[%emt 0:01:02]} 42. g4 {[%emt 0:00:04]} Rf3 {[%emt 0:00:34]} 43. b4 {[%emt 0:00:18]} Qe3 {[%emt 0:01:15]} 44. Rh5+ {[%emt 0:00:46]} Kg7 {[%emt 0:00:07]} 45. Rg5+ {[%emt 0:00:41]} Kf8 {[%emt 0:00:05]} 0-1

[Event "1000GM BonaFIDE January 2024"]
[Site "Sunnyvale"]
[Date "2024.01.21"]
[Round "4.2"]
[White "Nathan, Arjun"]
[Black "Xavier, Negron"]
[Result "1-0"]
[ECO "C88"]
[WhiteElo "1564"]
[BlackElo "1649"]
[Annotator "NA RC COMBH"]
[PlyCount "113"]
[EventDate "2024.01.20"]
[EventType "swiss"]
[EventCountry "USA"]
[SourceTitle "playchess.com"]
[Source "ChessBase"]
[SourceQuality "1"]
[TimeControl "5400+30"]

1. e4 {[%emt 0:00:01]} e5 {[%emt 0:00:08]} 2. Nf3 {[%emt 0:00:03]} Nc6 {[%emt 0:00:07]} 3. Bb5 {[%emt 0:00:05]} a6 {[%emt 0:00:08]} 4. Ba4 {[%emt 0:00:03]} Nf6 {[%emt 0:00:16]} 5. O-O {[%emt 0:00:07]} Be7 {[%emt 0:00:05]} 6. Re1 {[%emt 0:00:05]} b5 {[%emt 0:00:06]} 7. Bb3 {[%emt 0:00:06]} O-O {[%emt 0:00:13]} 8. a4 {[%emt 0:00:03]} b4 {[%emt 0:01:48]} 9. a5 {[%emt 0:00:15]} d6 {[%emt 0:00:40]} 10. d3 {[%emt 0:00:38]} Rb8 {[%emt 0:01:30]} 11. Nbd2 {[%emt 0:02:10]} Nd7 {[%emt 0:08:49]} 12. c3 {[%emt 0:11:28]} Bf6 {[%emt 0:08:27]} 13. Ba4 {[%emt 0:10:19]} Bb7 {[%emt 0:01:59]} 14. Nf1 {[%emt 0:00:26]} Nc5 {[%emt 0:00:41]} 15. Bc2 {[%emt 0:11:22]} Ne6 {[%emt 0:17:20]} 16. Ne3 {[%emt 0:04:16]} bxc3 {[%emt 0:02:30]} 17. bxc3 {[%emt 0:01:25]} g6 {[%emt 0:00:37]} 18. Nd5 {[%emt 0:12:04]} Bg7 {[%emt 0:00:22]} 19. Be3 {[%emt 0:01:12]} Ba8 {[%emt 0:08:39]} 20. Nd2 {[%emt 0:09:58]} Ne7 {[%emt 0:08:11]} 21. Bb3 {[%emt 0:04:23]} Nxd5 {[%emt 0:38:24]} 22. exd5 {[%emt 0:00:09]} Nc5 {[%emt 0:00:00]} 23. Bc4 {[%emt 0:31:22]} c6 {[%emt 0:00:00]} 24. d4 {[%emt 0:00:00]} exd4 {[%emt 0:00:00]} 25. cxd4 {[%emt 0:00:00]} cxd5 {[%emt 0:00:00]} 26. dxc5 {[%emt 0:00:00]} dxc4 {[%emt 0:00:00]} 27. Nxc4 {[%emt 0:00:00]} dxc5 {[%emt 0:00:00]} 28. Rc1 {[%emt 0:00:00]} Bd4 {[%emt 0:00:00]} 29. Rc2 {[%emt 0:00:00]} Bxe3 {[%emt 0:00:41]} 30. Nxe3 {[%emt 0:00:00]} Qxa5 {[%emt 0:00:32]} 31. Qc1 {[%emt 0:00:00]} Rbc8 {[%emt 0:01:01]} 32. Ng4 {[%emt 0:00:00]} f5 {[%emt 0:02:32]} 33. Nh6+ {[%emt 0:00:00]} Kg7 {[%emt 0:00:25]} 34. Re7+ {[%emt 0:00:00]} Kf6 {[%emt 0:00:20]} 35. Rce2 {[%emt 0:00:00]} Be4 {[%emt 0:00:49]} 36. Rxh7 {[%emt 0:00:00]} Rb8 {[%emt 0:00:22]} 37. Rxe4 {[%emt 0:01:11]} fxe4 {[%emt 0:00:34]} 38. Qf4+ {[%emt 0:03:07]} Ke6 {[%emt 0:00:08]} 39. Qxe4+ {[%emt 0:00:15]} Kd6 {[%emt 0:00:11]} 40. Qxg6+ {[%emt 0:00:34]} Ke5 {[%emt 0:00:51]} 41. Re7+ {[%emt 0:00:47]} Kd4 {[%emt 0:00:21]} 42. Qg4+ {[%emt 0:02:00]} Kd5 {[%emt 0:00:59]} 43. Qe6+ {[%emt 0:00:49]} Kd4 {[%emt 0:00:08]} 44. Rd7+ {[%emt 0:01:04]} Kc3 {[%emt 0:00:11]} 45. Qe3+ {[%emt 0:00:37]} Kb4 {[%emt 0:01:16]} 46. h3 {[%emt 0:00:24]} Qa1+ {[%emt 0:00:23]} 47. Kh2 {[%emt 0:00:05]} Qc3 {[%emt 0:00:36]} 48. Rd3 {[%emt 0:00:30]} Qc4 {[%emt 0:00:21]} 49. Qd2+ {[%emt 0:00:43]} Ka4 {[%emt 0:00:43]} 50. Qd1+ {[%emt 0:00:41]} Ka5 {[%emt 0:00:35]} 51. Ra3+ {[%emt 0:00:23]} Kb6 {[%emt 0:00:25]} 52. Qd6+ {[%emt 0:00:08]} Ka7 {[%emt 0:00:23]} 53. Qe7+ {[%emt 0:01:03]} Kb6 {[%emt 0:00:37]} 54. Ng4 {[%emt 0:00:32]} Qf4+ {[%emt 0:01:06]} 55. g3 {[%emt 0:00:08]} Qc7 {[%emt 0:00:00]} 56. Qe6+ {[%emt 0:00:39]} Kb5 {[%emt 0:00:05]} 57. Qxa6+ {[%emt 0:01:20]} 1-0

[Event "1000GM BonaFIDE January 2024"]
[Site "Sunnyvale"]
[Date "2024.01.21"]
[Round "4.3"]
[White "Rai, Achintya"]
[Black "Kulkarni, Advit Amod"]
[Result "1/2-1/2"]
[ECO "D00"]
[WhiteElo "1496"]
[BlackElo "1510"]
[Annotator "NA RC COMBH"]
[PlyCount "134"]
[EventDate "2024.01.20"]
[EventType "swiss"]
[EventCountry "USA"]
[SourceTitle "playchess.com"]
[Source "ChessBase"]
[SourceQuality "1"]
[TimeControl "5400+30"]

1. d4 {[%emt 0:00:02]} d5 {[%emt 0:00:04]} 2. Nc3 {[%emt 0:00:05]} Nf6 {[%emt 0:00:06]} 3. Bf4 {[%emt 0:00:05]} e6 {[%emt 0:00:08]} 4. Nb5 {[%emt 0:00:11]} Bb4+ {[%emt 0:00:08]} 5. c3 {[%emt 0:00:22]} Ba5 {[%emt 0:00:05]} 6. Qa4 {[%emt 0:01:16]} Nc6 {[%emt 0:04:25]} 7. b4 {[%emt 0:03:44]} Bb6 {[%emt 0:00:07]} 8. Qb3 {[%emt 0:00:49]} O-O {[%emt 0:01:02]} 9. a4 {[%emt 0:01:28]} a6 {[%emt 0:00:16]} 10. Na3 {[%emt 0:00:03]} Bd7 {[%emt 0:01:22]} 11. Nf3 {[%emt 0:01:26]} Ne7 {[%emt 0:02:46]} 12. e3 {[%emt 0:04:24]} Ng6 {[%emt 0:01:16]} 13. Bg3 {[%emt 0:00:43]} c6 {[%emt 0:01:06]} 14. c4 {[%emt 0:05:36]} Bc7 {[%emt 0:00:37]} 15. Bd3 {[%emt 0:03:41]} Ne4 {[%emt 0:06:11]} 16. Bxc7 {[%emt 0:04:34]} Qxc7 {[%emt 0:00:08]} 17. Bxe4 {[%emt 0:01:42]} dxe4 {[%emt 0:00:08]} 18. Ng5 {[%emt 0:04:52]} e5 {[%emt 0:02:05]} 19. d5 {[%emt 0:04:47]} cxd5 {[%emt 0:00:22]} 20. cxd5 {[%emt 0:00:02]} Bxa4 {[%emt 0:00:14]} 21. Qb2 {[%emt 0:00:39]} Qd8 {[%emt 0:05:40]} 22. Nxe4 {[%emt 0:01:58]} Qxd5 {[%emt 0:00:14]} 23. f3 {[%emt 0:00:21]} Qd3 {[%emt 0:04:15]} 24. Kf2 {[%emt 0:02:56]} Qb3 {[%emt 0:04:40]} 25. Qxb3 {[%emt 0:02:30]} Bxb3 {[%emt 0:00:03]} 26. Nc5 {[%emt 0:00:08]} Bd5 {[%emt 0:00:05]} 27. e4 {[%emt 0:01:14]} Bc6 {[%emt 0:00:14]} 28. Nc4 {[%emt 0:00:38]} Rad8 {[%emt 0:03:00]} 29. Rhd1 {[%emt 0:00:37]} h6 {[%emt 0:08:14]} 30. Na5 {[%emt 0:01:41]} Nf4 {[%emt 0:04:00]} 31. g3 {[%emt 0:04:55]} Ne6 {[%emt 0:02:32]} 32. Nxc6 {[%emt 0:01:54]} bxc6 {[%emt 0:00:02]} 33. Rxd8 {[%emt 0:00:49]} Rxd8 {[%emt 0:00:07]} 34. Nxe6 {[%emt 0:00:05]} fxe6 {[%emt 0:00:10]} 35. Rxa6 {[%emt 0:00:02]} Rc8 {[%emt 0:00:44]} 36. Ra5 {[%emt 0:00:10]} Kf7 {[%emt 0:00:33]} 37. Rxe5 {[%emt 0:00:08]} Rb8 {[%emt 0:00:05]} 38. Rc5 {[%emt 0:00:09]} Rxb4 {[%emt 0:00:17]} 39. Rxc6 {[%emt 0:00:02]} Rb2+ {[%emt 0:00:13]} 40. Ke3 {[%emt 0:00:14]} Rxh2 {[%emt 0:01:22]} 41. Rc7+ {[%emt 0:01:55]} Kf6 {[%emt 0:00:16]} 42. f4 {[%emt 0:00:09]} g5 {[%emt 0:01:28]} 43. e5+ {[%emt 0:08:37]} Kg6 {[%emt 0:00:13]} 44. Re7 {[%emt 0:00:10]} Kf5 {[%emt 0:03:42]} 45. Rf7+ {[%emt 0:00:13]} Kg4 {[%emt 0:00:06]} 46. f5 {[%emt 0:00:04]} exf5 {[%emt 0:05:36]} 47. e6 {[%emt 0:00:03]} Rh1 {[%emt 0:00:24]} 48. Kf2 {[%emt 0:00:21]} Ra1 {[%emt 0:00:36]} 49. e7 {[%emt 0:01:40]} Ra2+ {[%emt 0:00:06]} 50. Ke1 {[%emt 0:01:33]} Ra1+ {[%emt 0:00:19]} 51. Kd2 {[%emt 0:01:10]} Ra2+ {[%emt 0:00:06]} 52. Kd3 {[%emt 0:00:42]} Ra3+ {[%emt 0:00:08]} 53. Kd4 {[%emt 0:01:10]} Ra4+ {[%emt 0:00:07]} 54. Kd5 {[%emt 0:00:07]} Ra5+ {[%emt 0:00:13]} 55. Kd6 {[%emt 0:01:22]} Ra6+ {[%emt 0:00:12]} 56. Kd7 {[%emt 0:01:19]} Ra7+ {[%emt 0:00:08]} 57. Kd8 {[%emt 0:02:24]} Ra8+ {[%emt 0:00:10]} 58. Kc7 {[%emt 0:00:05]} Ra7+ {[%emt 0:00:07]} 59. Kb6 {[%emt 0:01:33]} Rxe7 {[%emt 0:00:02]} 60. Rxe7 {[%emt 0:00:08]} Kxg3 {[%emt 0:00:09]} 61. Kc5 {[%emt 0:00:15]} f4 {[%emt 0:00:09]} 62. Kd4 {[%emt 0:00:09]} f3 {[%emt 0:00:09]} 63. Ke3 {[%emt 0:00:19]} g4 {[%emt 0:00:27]} 64. Rh7 {[%emt 0:00:21]} Kg2 {[%emt 0:01:04]} 65. Rxh6 {[%emt 0:02:54]} f2 {[%emt 0:00:07]} 66. Rf6 {[%emt 0:00:04]} f1=Q {[%emt 0:00:22]} 67. Rxf1 {[%emt 0:00:04]} Kxf1 {[%emt 0:00:12]} 1/2-1/2

[Event "1000GM BonaFIDE January 2024"]
[Site "Sunnyvale"]
[Date "2024.01.21"]
[Round "4.4"]
[White "Yang, Liwei"]
[Black "Vale Cruz, Armin"]
[Result "1/2-1/2"]
[ECO "C66"]
[WhiteElo "1483"]
[BlackElo "1598"]
[Annotator "NA RC COMBH"]
[PlyCount "114"]
[EventDate "2024.01.20"]
[EventType "swiss"]
[EventCountry "USA"]
[SourceTitle "playchess.com"]
[Source "ChessBase"]
[SourceQuality "1"]
[TimeControl "5400+30"]

1. e4 {[%emt 0:00:58]} e5 {[%emt 0:00:08]} 2. Nf3 {[%emt 0:00:03]} Nc6 {[%emt 0:00:04]} 3. Bb5 {[%emt 0:00:16]} Nf6 {[%emt 0:00:27]} 4. O-O {[%emt 0:00:17]} Be7 {[%emt 0:00:11]} 5. Re1 {[%emt 0:01:32]} d6 {[%emt 0:00:13]} 6. c3 {[%emt 0:10:58]} O-O {[%emt 0:01:18]} 7. h3 {[%emt 0:00:57]} Bd7 {[%emt 0:07:27]} 8. d4 {[%emt 0:02:15]} h6 {[%emt 0:03:47]} 9. a4 {[%emt 0:20:06]} a6 {[%emt 0:06:45]} 10. Bc4 {[%emt 0:01:04]} Bc8 {[%emt 0:09:10]} 11. d5 {[%emt 0:10:09]} Nb8 {[%emt 0:00:09]} 12. a5 {[%emt 0:03:37]} Kh7 {[%emt 0:03:59]} 13. Nbd2 {[%emt 0:02:06]} Ng8 {[%emt 0:03:47]} 14. Nf1 {[%emt 0:04:07]} g6 {[%emt 0:00:16]} 15. Bd3 {[%emt 0:09:57]} f5 {[%emt 0:01:27]} 16. Kh2 {[%emt 0:03:48]} Rf7 {[%emt 0:02:16]} 17. c4 {[%emt 0:01:40]} Kh8 {[%emt 0:01:25]} 18. b4 {[%emt 0:05:14]} Nd7 {[%emt 0:01:13]} 19. Bb2 {[%emt 0:03:26]} Nf8 {[%emt 0:10:51]} 20. b5 {[%emt 0:05:44]} Nd7 {[%emt 0:03:49]} 21. N1d2 {[%emt 0:01:53]} Nc5 {[%emt 0:02:38]} 22. Bc2 {[%emt 0:00:09]} Nf6 {[%emt 0:02:42]} 23. bxa6 {[%emt 0:02:46]} Rxa6 {[%emt 0:02:10]} 24. Nh4 {[%emt 0:00:31]} Ng4+ {[%emt 0:01:56]} 25. hxg4 {[%emt 0:00:45]} Bxh4 {[%emt 0:00:10]} 26. Rf1 {[%emt 0:09:12]} fxg4 {[%emt 0:35:12]} 27. f4 {[%emt 0:00:25]} gxf3 {[%emt 0:08:27]} 28. Nxf3 {[%emt 0:01:05]} Kg8 {[%emt 0:03:15]} 29. Qd2 {[%emt 0:01:01]} Bg5 {[%emt 0:01:05]} 30. Nxg5 {[%emt 0:00:45]} Qxg5 {[%emt 0:02:04]} 31. Qxg5 {[%emt 0:00:49]} hxg5 {[%emt 0:00:09]} 32. Rxf7 {[%emt 0:00:22]} Kxf7 {[%emt 0:00:13]} 33. Kg3 {[%emt 0:00:33]} Bd7 {[%emt 0:02:35]} 34. Bc3 {[%emt 0:00:44]} Ra8 {[%emt 0:05:45]} 35. Bd2 {[%emt 0:01:29]} g4 {[%emt 0:02:26]} 36. Bc3 {[%emt 0:02:02]} Kg7 {[%emt 0:08:55]} 37. Bd2 {[%emt 0:00:48]} b6 {[%emt 0:01:57]} 38. Bc3 {[%emt 0:00:14]} bxa5 {[%emt 0:01:31]} 39. Rxa5 {[%emt 0:00:04]} Rf8 {[%emt 0:04:48]} 40. Ra1 {[%emt 0:03:03]} g5 {[%emt 0:00:15]} 41. Bd2 {[%emt 0:00:22]} Kg6 {[%emt 0:00:08]} 42. Ra7 {[%emt 0:00:14]} Rb8 {[%emt 0:00:00]} 43. Bc3 {[%emt 0:00:17]} Rb7 {[%emt 0:00:00]} 44. Ra8 {[%emt 0:00:26]} Kg7 {[%emt 0:00:00]} 45. Ra3 {[%emt 0:00:29]} Rb8 {[%emt 0:00:41]} 46. Kf2 {[%emt 0:00:40]} Rf8+ {[%emt 0:00:25]} 47. Ke2 {[%emt 0:02:11]} Kg6 {[%emt 0:00:55]} 48. Bd2 {[%emt 0:00:24]} Rb8 {[%emt 0:00:22]} 49. Bc3 {[%emt 0:00:11]} Kh5 {[%emt 0:00:44]} 50. Ra1 {[%emt 0:00:32]} g3 {[%emt 0:01:23]} 51. Ke3 {[%emt 0:00:56]} g4 {[%emt 0:00:30]} 52. Ra7 {[%emt 0:01:34]} Rb7 {[%emt 0:00:49]} 53. Ra8 {[%emt 0:00:15]} Rb6 {[%emt 0:00:32]} 54. Rh8+ {[%emt 0:00:34]} Kg6 {[%emt 0:00:14]} 55. Ra8 {[%emt 0:00:30]} Ra6 {[%emt 0:00:23]} 56. Rxa6 {[%emt 0:00:14]} Nxa6 {[%emt 0:00:05]} 57. Be1 {[%emt 0:00:09]} Nc5 {[%emt 0:00:45]} 1/2-1/2

[Event "1000GM BonaFIDE January 2024"]
[Site "Sunnyvale"]
[Date "2024.01.21"]
[Round "4.5"]
[White "Ni, Leo"]
[Black "Wu, Andrew"]
[Result "1/2-1/2"]
[ECO "B52"]
[WhiteElo "1440"]
[BlackElo "1969"]
[Annotator "RC"]
[PlyCount "112"]
[EventDate "2024.01.20"]
[EventType "swiss"]
[EventCountry "USA"]
[SourceTitle "playchess.com"]
[Source "ChessBase"]
[SourceQuality "1"]
[TimeControl "5400+30"]

1. e4 {[%emt 0:00:02]} c5 {[%emt 0:00:36]} 2. Nf3 {[%emt 0:00:11]} d6 {[%emt 0:00:04]} 3. Bb5+ {[%emt 0:00:08]} Bd7 {[%emt 0:00:13]} 4. Bxd7+ {[%emt 0:00:18]} Qxd7 {[%emt 0:00:52]} 5. c4 {[%emt 0:00:23]} Nc6 {[%emt 0:01:06]} 6. Nc3 {[%emt 0:00:17]} g6 {[%emt 0:01:05]} 7. d4 {[%emt 0:00:14]} cxd4 {[%emt 0:00:10]} 8. Nxd4 {[%emt 0:00:08]} Bg7 {[%emt 0:00:43]} 9. Nde2 {[%emt 0:00:24]} Nf6 {[%emt 0:02:18]} 10. O-O {[%emt 0:02:22]} Rc8 {[%emt 0:01:29]} 11. f3 {[%emt 0:01:56]} O-O {[%emt 0:02:25]} 12. Bg5 {[%emt 0:03:17]} Qc7 {[%emt 0:01:11]} 13. Kh1 {[%emt 0:00:49]} a6 {[%emt 0:03:12]} 14. Bxf6 {[%emt 0:09:31]} exf6 {[%emt 0:00:18]} 15. Rc1 {[%emt 0:05:26]} Ne7 {[%emt 0:09:51]} 16. Qd2 {[%emt 0:06:31]} f5 {[%emt 0:09:24]} 17. exf5 {[%emt 0:05:04]} Nxf5 {[%emt 0:02:52]} 18. Nd5 {[%emt 0:01:13]} Qd8 {[%emt 0:03:07]} 19. b3 {[%emt 0:07:41]} Re8 {[%emt 0:04:49]} 20. Ng3 {[%emt 0:03:25]} Ne7 {[%emt 0:10:50]} 21. Ne4 {[%emt 0:07:42]} Nxd5 {[%emt 0:01:24]} 22. Qxd5 {[%emt 0:00:15]} Rc6 {[%emt 0:02:20]} 23. Rcd1 {[%emt 0:02:56]} Re5 {[%emt 0:00:57]} 24. Qd2 {[%emt 0:02:20]} Rh5 {[%emt 0:12:16]} 25. h3 {[%emt 0:04:04]} Bf8 {[%emt 0:03:51]} 26. Qf4 {[%emt 0:07:06]} Rf5 {[%emt 0:02:24]} 27. Qh2 {[%emt 0:01:14]} Ra5 {[%emt 0:05:27]} 28. Rd2 {[%emt 0:03:26]} Bg7 {[%emt 0:02:21]} 29. Rfd1 {[%emt 0:02:18]} f5 {[%emt 0:00:50]} 30. Rxd6 {[%emt 0:01:26]} Rxd6 {[%emt 0:02:08]} 31. Qxd6 {[%emt 0:00:21]} Qxd6 {[%emt 0:03:50]} 32. Nxd6 {[%emt 0:00:19]} b6 {[%emt 0:00:01]} 33. a4 {[%emt 0:00:23]} Bf8 {[%emt 0:01:19]} 34. f4 {[%emt 0:01:59]} Rc5 {[%emt 0:00:38]} 35. Nb7 {[%emt 0:01:20]} Rc7 {[%emt 0:00:26]} 36. Nd8 {[%emt 0:00:14]} Re7 {[%emt 0:00:10]} 37. Rd3 {[%emt 0:01:15]} Re4 {[%emt 0:00:39]} 38. g3 {[%emt 0:00:56]} Bc5 {[%emt 0:01:33]} 39. Nc6 {[%emt 0:02:21]} a5 {[%emt 0:01:48]} 40. Ne5 {[%emt 0:01:11]} Re3 {[%emt 0:01:59]} 41. Rxe3 {[%emt 0:00:50]} Bxe3 {[%emt 0:00:01]} 42. Kg2 {[%emt 0:00:24]} Kf8 {[%emt 0:00:37]} 43. Kf3 {[%emt 0:00:26]} Bg1 {[%emt 0:00:03]} 44. g4 {[%emt 0:00:41]} Ke7 {[%emt 0:00:51]} 45. h4 {[%emt 0:01:31]} h5 {[%emt 0:01:44]} 46. Nxg6+ {[%emt 0:00:10]} Kf6 {[%emt 0:00:44]} 47. gxh5 {[%emt 0:00:15]} Bc5 {[%emt 0:01:04]} 48. Ne5 {[%emt 0:00:53]} Kg7 {[%emt 0:00:08]} 49. Nd7 {[%emt 0:02:15]} Bd4 {[%emt 0:00:34]} 50. Ne5 {[%emt 0:01:40]} Kh6 {[%emt 0:01:07]} 51. Nd3 {[%emt 0:01:33]} Bc3 {[%emt 0:03:58]} 52. c5 {[%emt 0:03:06]} bxc5 {[%emt 0:00:02]} 53. Nxc5 {[%emt 0:00:12]} Kxh5 {[%emt 0:00:08]} 54. Nb7 {[%emt 0:00:36]} Bb4 {[%emt 0:00:01]} 55. Ke3 {[%emt 0:00:15]} Kxh4 {[%emt 0:00:13]} 56. Kd4 {[%emt 0:00:11]} Kg4 {[%emt 0:01:06]} 1/2-1/2